Workbook

Sheet Bath remodel costs
B1: Bathroom Remodel Costs Worksheet
B2: NOTE: Difference columns in table will show if actual went over estimated amounts. Red numbers show went over (negative) and black shows under numbers (positive).
E3: Itemised Cost (£) | H3: Total Cost (£)
B4: Area | C4: Items | D4: Quantity | E4: Estimated | F4: Actual | G4: Difference | H4: Estimated | I4: Actual | J4: Difference
B5: Bath/Shower | C5: Tub, cast iron, 5', standard | D5: 1 | E5: £250.00 | F5: =RANDBETWEEN(E5+2,E5+20) -> £264.00 | G5: =IFERROR(Costs[[#This Row],[Estimated]]-Costs[[#This Row],[Actual]], "") -> -£14.00 | H5: =IFERROR(Costs[[#This Row],[Quantity]]*Costs[[#This Row],[Estimated]], "") -> £250.00 | I5: =IFERROR(Costs[[#This Row],[Quantity]]*Costs[[#This Row],[Actual]], "") -> £264.00 | J5: =IFERROR(Costs[[#This Row],[Estimated ]]-Costs[[#This Row],[Actual ]], "") -> -£14.00
B6: Bath/Shower | C6: Shower doors, hinged, standard | D6: 1 | E6: £200.00 | F6: £205.00 | G6: =IFERROR(Costs[[#This Row],[Estimated]]-Costs[[#This Row],[Actual]], "") -> -£5.00 | H6: =IFERROR(Costs[[#This Row],[Quantity]]*Costs[[#This Row],[Estimated]], "") -> £200.00 | I6: =IFERROR(Costs[[#This Row],[Quantity]]*Costs[[#This Row],[Actual]], "") -> £205.00 | J6: =IFERROR(Costs[[#This Row],[Estimated ]]-Costs[[#This Row],[Actual ]], "") -> -£5.00
B7: Bath/Shower | C7: Showerhead, standard | D7: 1 | E7: £50.00 | F7: £60.00 | G7: =IFERROR(Costs[[#This Row],[Estimated]]-Costs[[#This Row],[Actual]], "") -> -£10.00 | H7: =IFERROR(Costs[[#This Row],[Quantity]]*Costs[[#This Row],[Estimated]], "") -> £50.00 | I7: =IFERROR(Costs[[#This Row],[Quantity]]*Costs[[#This Row],[Actual]], "") -> £60.00 | J7: =IFERROR(Costs[[#This Row],[Estimated ]]-Costs[[#This Row],[Actual ]], "") -> -£10.00
B8: Bath/Shower | C8: Bathtub wall surround, standard | D8: 1 | E8: £200.00 | F8: £210.00 | G8: =IFERROR(Costs[[#This Row],[Estimated]]-Costs[[#This Row],[Actual]], "") -> -£10.00 | H8: =IFERROR(Costs[[#This Row],[Quantity]]*Costs[[#This Row],[Estimated]], "") -> £200.00 | I8: =IFERROR(Costs[[#This Row],[Quantity]]*Costs[[#This Row],[Actual]], "") -> £210.00 | J8: =IFERROR(Costs[[#This Row],[Estimated ]]-Costs[[#This Row],[Actual ]], "") -> -£10.00
B9: Cabinets | C9: Medicine cabinet 24'', deluxe | D9: 1 | E9: £200.00 | F9: £206.00 | G9: =IFERROR(Costs[[#This Row],[Estimated]]-Costs[[#This Row],[Actual]], "") -> -£6.00 | H9: =IFERROR(Costs[[#This Row],[Quantity]]*Costs[[#This Row],[Estimated]], "") -> £200.00 | I9: =IFERROR(Costs[[#This Row],[Quantity]]*Costs[[#This Row],[Actual]], "") -> £206.00 | J9: =IFERROR(Costs[[#This Row],[Estimated ]]-Costs[[#This Row],[Actual ]], "") -> -£6.00
B10: Cabinets | C10: Modular vanity 30'', standard | D10: 2 | E10: £100.00 | F10: £120.00 | G10: =IFERROR(Costs[[#This Row],[Estimated]]-Costs[[#This Row],[Actual]], "") -> -£20.00 | H10: =IFERROR(Costs[[#This Row],[Quantity]]*Costs[[#This Row],[Estimated]], "") -> £200.00 | I10: =IFERROR(Costs[[#This Row],[Quantity]]*Costs[[#This Row],[Actual]], "") -> £240.00 | J10: =IFERROR(Costs[[#This Row],[Estimated ]]-Costs[[#This Row],[Actual ]], "") -> -£40.00
B11: Worktops | C11: Ceramic tile, deluxe (qty. in lin. ft.) | D11: 5 | E11: £22.50 | F11: £29.00 | G11: =IFERROR(Costs[[#This Row],[Estimated]]-Costs[[#This Row],[Actual]], "") -> -£6.50 | H11: =IFERROR(Costs[[#This Row],[Quantity]]*Costs[[#This Row],[Estimated]], "") -> £112.50 | I11: =IFERROR(Costs[[#This Row],[Quantity]]*Costs[[#This Row],[Actual]], "") -> £145.00 | J11: =IFERROR(Costs[[#This Row],[Estimated ]]-Costs[[#This Row],[Actual ]], "") -> -£32.50
B12: Taps | C12: Tap, bathtub, standard | D12: 1 | E12: £90.00 | F12: £107.00 | G12: =IFERROR(Costs[[#This Row],[Estimated]]-Costs[[#This Row],[Actual]], "") -> -£17.00 | H12: =IFERROR(Costs[[#This Row],[Quantity]]*Costs[[#This Row],[Estimated]], "") -> £90.00 | I12: =IFERROR(Costs[[#This Row],[Quantity]]*Costs[[#This Row],[Actual]], "") -> £107.00 | J12: =IFERROR(Costs[[#This Row],[Estimated ]]-Costs[[#This Row],[Actual ]], "") -> -£17.00
B13: Taps | C13: Tap, shower, single handle, standard | D13: 1 | E13: £115.00 | F13: £127.00 | G13: =IFERROR(Costs[[#This Row],[Estimated]]-Costs[[#This Row],[Actual]], "") -> -£12.00 | H13: =IFERROR(Costs[[#This Row],[Quantity]]*Costs[[#This Row],[Estimated]], "") -> £115.00 | I13: =IFERROR(Costs[[#This Row],[Quantity]]*Costs[[#This Row],[Actual]], "") -> £127.00 | J13: =IFERROR(Costs[[#This Row],[Estimated ]]-Costs[[#This Row],[Actual ]], "") -> -£12.00
B14: Taps | C14: Sink tap, standard | D14: 1 | E14: £95.00 | F14: £111.00 | G14: =IFERROR(Costs[[#This Row],[Estimated]]-Costs[[#This Row],[Actual]], "") -> -£16.00 | H14: =IFERROR(Costs[[#This Row],[Quantity]]*Costs[[#This Row],[Estimated]], "") -> £95.00 | I14: =IFERROR(Costs[[#This Row],[Quantity]]*Costs[[#This Row],[Actual]], "") -> £111.00 | J14: =IFERROR(Costs[[#This Row],[Estimated ]]-Costs[[#This Row],[Actual ]], "") -> -£16.00
B15: Flooring | C15: Ceramic tile, standard (qty. in sq. ft.) | D15: 35 | E15: £12.00 | F15: £32.00 | G15: =IFERROR(Costs[[#This Row],[Estimated]]-Costs[[#This Row],[Actual]], "") -> -£20.00 | H15: =IFERROR(Costs[[#This Row],[Quantity]]*Costs[[#This Row],[Estimated]], "") -> £420.00 | I15: =IFERROR(Costs[[#This Row],[Quantity]]*Costs[[#This Row],[Actual]], "") -> £1,120.00 | J15: =IFERROR(Costs[[#This Row],[Estimated ]]-Costs[[#This Row],[Actual ]], "") -> -£700.00
B16: Hardware | C16: Towel bar, standard | D16: 2 | E16: £15.00 | F16: £25.00 | G16: =IFERROR(Costs[[#This Row],[Estimated]]-Costs[[#This Row],[Actual]], "") -> -£10.00 | H16: =IFERROR(Costs[[#This Row],[Quantity]]*Costs[[#This Row],[Estimated]], "") -> £30.00 | I16: =IFERROR(Costs[[#This Row],[Quantity]]*Costs[[#This Row],[Actual]], "") -> £50.00 | J16: =IFERROR(Costs[[#This Row],[Estimated ]]-Costs[[#This Row],[Actual ]], "") -> -£20.00
B17: Hardware | C17: Toilet Paper holder | D17: 1 | E17: £10.00 | F17: £26.00 | G17: =IFERROR(Costs[[#This Row],[Estimated]]-Costs[[#This Row],[Actual]], "") -> -£16.00 | H17: =IFERROR(Costs[[#This Row],[Quantity]]*Costs[[#This Row],[Estimated]], "") -> £10.00 | I17: =IFERROR(Costs[[#This Row],[Quantity]]*Costs[[#This Row],[Actual]], "") -> £26.00 | J17: =IFERROR(Costs[[#This Row],[Estimated ]]-Costs[[#This Row],[Actual ]], "") -> -£16.00
B18: Lighting | C18: Recessed lights, standard | D18: 4 | E18: £25.00 | F18: £44.00 | G18: =IFERROR(Costs[[#This Row],[Estimated]]-Costs[[#This Row],[Actual]], "") -> -£19.00 | H18: =IFERROR(Costs[[#This Row],[Quantity]]*Costs[[#This Row],[Estimated]], "") -> £100.00 | I18: =IFERROR(Costs[[#This Row],[Quantity]]*Costs[[#This Row],[Actual]], "") -> £176.00 | J18: =IFERROR(Costs[[#This Row],[Estimated ]]-Costs[[#This Row],[Actual ]], "") -> -£76.00
B19: Sinks | C19: Toilet, standard | D19: 2 | E19: £60.00 | F19: £68.00 | G19: =IFERROR(Costs[[#This Row],[Estimated]]-Costs[[#This Row],[Actual]], "") -> -£8.00 | H19: =IFERROR(Costs[[#This Row],[Quantity]]*Costs[[#This Row],[Estimated]], "") -> £120.00 | I19: =IFERROR(Costs[[#This Row],[Quantity]]*Costs[[#This Row],[Actual]], "") -> £136.00 | J19: =IFERROR(Costs[[#This Row],[Estimated ]]-Costs[[#This Row],[Actual ]], "") -> -£16.00
B20: Other | D20: 1 | E20: £20.00 | F20: £26.00 | G20: =IFERROR(Costs[[#This Row],[Estimated]]-Costs[[#This Row],[Actual]], "") -> -£6.00 | H20: =IFERROR(Costs[[#This Row],[Quantity]]*Costs[[#This Row],[Estimated]], "") -> £20.00 | I20: =IFERROR(Costs[[#This Row],[Quantity]]*Costs[[#This Row],[Actual]], "") -> £26.00 | J20: =IFERROR(Costs[[#This Row],[Estimated ]]-Costs[[#This Row],[Actual ]], "") -> -£6.00
B21: Subtotal | E21: =SUBTOTAL(109,Costs[Estimated]) -> £1,464.50 | F21: =SUBTOTAL(109,Costs[Actual]) -> £1,660.00 | G21: =SUBTOTAL(109,Costs[Difference]) -> -£195.50 | H21: =SUBTOTAL(109,Costs[[Estimated ]]) -> £2,212.50 | I21: =SUBTOTAL(109,Costs[[Actual ]]) -> £3,209.00 | J21: =SUBTOTAL(109,Costs[[Difference ]]) -> -£996.50
B22: Unexpected Costs (add 30% estimated) | E22: =IFERROR(Costs[[#Totals],[Estimated]]*0.3, "") -> £439.35 | H22: =IFERROR(Costs[[#Totals],[Estimated ]]*0.3, "") -> £663.75
B23: TOTAL COSTS | E23: =IFERROR(SUM(E21:E21), "") -> £1,464.50 | H23: =IFERROR(SUM(Costs[[#Totals],[Estimated ]],Overage), "") -> £2,876.25
